[Event "*** SCC Grand Prix: Titled Tuesday Blitz"]
[Site "Chess.com"]
[Date "2020.09.08"]
[Round "5"]
[White "Sergey85Rodchenkov"]
[Black "Reader777"]
[Result "0-1"]
[WhiteElo "2499"]
[BlackElo "2665"]
[TimeControl "180+1"]
[EndTime "10:57:40 PDT"]
[Termination "Reader777 won by resignation"]

1. e4 {[%clk 0:03:00.9]} 1... c5 {[%clk 0:02:58.9]} 2. Nf3 {[%clk 0:03:00.7]}
2... d6 {[%clk 0:02:58.8]} 3. d4 {[%clk 0:03:00.9]} 3... cxd4 {[%clk 0:02:59.3]}
4. Nxd4 {[%clk 0:03:01.5]} 4... e6 {[%clk 0:02:59.4]} 5. Nc3 {[%clk 0:03:01.8]}
5... Nc6 {[%clk 0:02:59.3]} 6. Bc4 {[%clk 0:03:01.3]} 6... Nf6 {[%clk 0:02:58]}
7. O-O {[%clk 0:03:01.2]} 7... a6 {[%clk 0:02:55.4]} 8. Bb3 {[%clk 0:03:00.4]}
8... Be7 {[%clk 0:02:54.2]} 9. Kh1 {[%clk 0:02:59]} 9... O-O {[%clk 0:02:53.4]}
10. f4 {[%clk 0:02:58.8]} 10... Na5 {[%clk 0:02:52.9]} 11. f5 {[%clk 0:02:58.1]}
11... Nxb3 {[%clk 0:02:51.1]} 12. axb3 {[%clk 0:02:58.3]} 12... Bd7 {[%clk
0:02:22.5]} 13. Bg5 {[%clk 0:02:52.7]} 13... h6 {[%clk 0:02:19.6]} 14. Bh4
{[%clk 0:02:51.9]} 14... Rc8 {[%clk 0:02:14.4]} 15. Qf3 {[%clk 0:02:42.3]} 15...
Nh7 {[%clk 0:01:51.4]} 16. Bxe7 {[%clk 0:02:19.6]} 16... Qxe7 {[%clk 0:01:52.3]}
17. Qg3 {[%clk 0:02:13.5]} 17... Nf6 {[%clk 0:01:48]} 18. fxe6 {[%clk
0:01:58.8]} 18... fxe6 {[%clk 0:01:42.5]} 19. e5 {[%clk 0:01:52.9]} 19... dxe5
{[%clk 0:01:38.9]} 20. Qxe5 {[%clk 0:01:52.7]} 20... Rc5 {[%clk 0:01:37.3]} 21.
Qe2 {[%clk 0:01:45]} 21... e5 {[%clk 0:01:35.8]} 22. Nf5 {[%clk 0:01:41.7]}
22... Bxf5 {[%clk 0:01:35]} 23. Rxf5 {[%clk 0:01:42.1]} 23... Rfc8 {[%clk
0:01:26.5]} 24. b4 {[%clk 0:01:30.5]} 24... Rc4 {[%clk 0:01:22.2]} 25. Rxe5
{[%clk 0:01:30.2]} 25... Qxb4 {[%clk 0:01:18.8]} 26. Rf1 {[%clk 0:01:15.7]}
26... Qxb2 {[%clk 0:00:57.9]} 27. Nd5 {[%clk 0:01:15.2]} 27... Nxd5 {[%clk
0:00:53]} 28. Rxd5 {[%clk 0:01:14]} 28... Qxc2 {[%clk 0:00:44.7]} 29. Qe6+
{[%clk 0:01:09.2]} 29... Kh7 {[%clk 0:00:43.4]} 30. Rd7 {[%clk 0:01:07]} 30...
Qg6 {[%clk 0:00:32.6]} 31. Qxg6+ {[%clk 0:00:55.9]} 31... Kxg6 {[%clk
0:00:32.8]} 32. Rxb7 {[%clk 0:00:56.3]} 32... Rc1 {[%clk 0:00:32.7]} 33. Kg1
{[%clk 0:00:56.6]} 33... Rxf1+ {[%clk 0:00:32]} 34. Kxf1 {[%clk 0:00:56.9]}
34... Ra8 {[%clk 0:00:32.7]} 35. Rb4 {[%clk 0:00:55]} 35... a5 {[%clk
0:00:32.2]} 36. Ra4 {[%clk 0:00:55.9]} 36... Kf5 {[%clk 0:00:32.8]} 37. Kf2
{[%clk 0:00:56.3]} 37... Ke5 {[%clk 0:00:33.4]} 38. Ke3 {[%clk 0:00:57]} 38...
Kd5 {[%clk 0:00:33.8]} 39. Kd3 {[%clk 0:00:57.6]} 39... Kc5 {[%clk 0:00:34.1]}
40. Kc3 {[%clk 0:00:58.2]} 40... Kb5 {[%clk 0:00:34.1]} 41. Kb3 {[%clk
0:00:53.7]} 41... Re8 {[%clk 0:00:32.6]} 42. Rg4 {[%clk 0:00:54.2]} 42... Re3+
{[%clk 0:00:26.6]} 43. Kb2 {[%clk 0:00:51.9]} 43... Re7 {[%clk 0:00:26]} 44. h4
{[%clk 0:00:46.4]} 44... a4 {[%clk 0:00:22.5]} 45. h5 {[%clk 0:00:44.8]} 45...
Re5 {[%clk 0:00:20.6]} 46. Rxg7 {[%clk 0:00:44]} 46... Rxh5 {[%clk 0:00:21]} 47.
Rb7+ {[%clk 0:00:42.8]} 47... Kc6 {[%clk 0:00:20.9]} 48. Ra7 {[%clk 0:00:39.8]}
48... Rh4 {[%clk 0:00:20.5]} 49. Kc3 {[%clk 0:00:36.5]} 49... Kd5 {[%clk
0:00:19.7]} 50. Kd3 {[%clk 0:00:35.7]} 50... Ke5 {[%clk 0:00:19.4]} 51. Ke3
{[%clk 0:00:33.4]} 51... Rb4 {[%clk 0:00:18.5]} 52. Rh7 {[%clk 0:00:26.2]} 52...
Rb6 {[%clk 0:00:10.4]} 53. Ra7 {[%clk 0:00:22.1]} 53... Rb3+ {[%clk 0:00:10.5]}
54. Kf2 {[%clk 0:00:20.3]} 54... a3 {[%clk 0:00:11.4]} 55. Rh7 {[%clk
0:00:16.3]} 55... a2 {[%clk 0:00:10.5]} 56. Ra7 {[%clk 0:00:15.3]} 56... Rb2+
{[%clk 0:00:10.8]} 57. Kf3 {[%clk 0:00:15.4]} 57... Kf5 {[%clk 0:00:10.9]} 58.
Ra5+ {[%clk 0:00:12.9]} 58... Ke6 {[%clk 0:00:10.8]} 59. g4 {[%clk 0:00:11.7]}
59... Kd6 {[%clk 0:00:10.4]} 60. Kf4 {[%clk 0:00:11.8]} 60... Kc6 {[%clk
0:00:10.5]} 61. Kf5 {[%clk 0:00:12.2]} 61... Rb5+ {[%clk 0:00:10.1]} 0-1

[Event "*** SCC Grand Prix: Titled Tuesday Blitz"]
[Site "Chess.com"]
[Date "2020.09.08"]
[Round "5"]
[White "Vuk2000"]
[Black "SARGISMV"]
[Result "1-0"]
[WhiteElo "2728"]
[BlackElo "2498"]
[TimeControl "180+1"]
[EndTime "10:57:46 PDT"]
[Termination "Vuk2000 won by checkmate"]

1. d4 {[%clk 0:03:00.7]} 1... c5 {[%clk 0:02:59.1]} 2. d5 {[%clk 0:02:59.9]}
2... e6 {[%clk 0:02:59.2]} 3. c4 {[%clk 0:02:59.7]} 3... exd5 {[%clk 0:02:59.1]}
4. cxd5 {[%clk 0:03:00.6]} 4... d6 {[%clk 0:03:00]} 5. Nc3 {[%clk 0:03:00.3]}
5... a6 {[%clk 0:03:00.9]} 6. a4 {[%clk 0:02:59.8]} 6... Ne7 {[%clk 0:03:01.8]}
7. e4 {[%clk 0:02:56.5]} 7... Ng6 {[%clk 0:02:59.8]} 8. g3 {[%clk 0:02:45.1]}
8... Be7 {[%clk 0:02:59.3]} 9. Bg2 {[%clk 0:02:40.2]} 9... Bf6 {[%clk
0:02:55.9]} 10. Nge2 {[%clk 0:02:38.5]} 10... O-O {[%clk 0:02:55.3]} 11. O-O
{[%clk 0:02:38]} 11... Re8 {[%clk 0:02:55.5]} 12. f4 {[%clk 0:02:28.4]} 12...
Nd7 {[%clk 0:02:55.2]} 13. Qc2 {[%clk 0:02:24.9]} 13... Rb8 {[%clk 0:02:54.6]}
14. b3 {[%clk 0:02:22.6]} 14... b5 {[%clk 0:02:52.9]} 15. axb5 {[%clk
0:02:22.3]} 15... axb5 {[%clk 0:02:53.8]} 16. Bb2 {[%clk 0:02:22.8]} 16... b4
{[%clk 0:02:44.4]} 17. Na4 {[%clk 0:02:22]} 17... Ba6 {[%clk 0:02:36.4]} 18.
Rfe1 {[%clk 0:02:12.1]} 18... Bb5 {[%clk 0:02:12]} 19. Bxf6 {[%clk 0:01:58.5]}
19... Qxf6 {[%clk 0:02:02.2]} 20. Nb2 {[%clk 0:01:57.3]} 20... Ra8 {[%clk
0:02:00.2]} 21. Rxa8 {[%clk 0:01:54.3]} 21... Rxa8 {[%clk 0:02:01.1]} 22. Nc4
{[%clk 0:01:53.6]} 22... Bxc4 {[%clk 0:01:59.8]} 23. Qxc4 {[%clk 0:01:53.1]}
23... Ra2 {[%clk 0:01:48]} 24. Nc1 {[%clk 0:01:38.7]} 24... Ra1 {[%clk
0:01:41.4]} 25. Nd3 {[%clk 0:01:12.8]} 25... h5 {[%clk 0:01:24.6]} 26. Rxa1
{[%clk 0:00:57.5]} 26... Qxa1+ {[%clk 0:01:25.5]} 27. Kf2 {[%clk 0:00:50.5]}
27... h4 {[%clk 0:01:12.4]} 28. Bh3 {[%clk 0:00:35.8]} 28... Qa2+ {[%clk
0:01:10.6]} 29. Kg1 {[%clk 0:00:33.6]} 29... hxg3 {[%clk 0:01:00.5]} 30. hxg3
{[%clk 0:00:30.2]} 30... Qb1+ {[%clk 0:00:53]} 31. Kf2 {[%clk 0:00:26.6]} 31...
Nf6 {[%clk 0:00:50.3]} 32. Bf5 {[%clk 0:00:24.2]} 32... Qa2+ {[%clk 0:00:47]}
33. Kf3 {[%clk 0:00:23.8]} 33... Ne7 {[%clk 0:00:41.7]} 34. g4 {[%clk
0:00:07.3]} 34... Qh2 {[%clk 0:00:30.8]} 35. Nf2 {[%clk 0:00:07]} 35... g6
{[%clk 0:00:27.4]} 36. e5 {[%clk 0:00:05.5]} 36... Nfxd5 {[%clk 0:00:17.4]} 37.
Be4 {[%clk 0:00:05]} 37... dxe5 {[%clk 0:00:16.8]} 38. Bxd5 {[%clk 0:00:04.8]}
38... Nxd5 {[%clk 0:00:17]} 39. Qxd5 {[%clk 0:00:05]} 39... Qxf4+ {[%clk
0:00:17.6]} 40. Ke2 {[%clk 0:00:05.4]} 40... Kg7 {[%clk 0:00:09.4]} 41. Qe4
{[%clk 0:00:05.3]} 41... Qf6 {[%clk 0:00:06]} 42. Nd3 {[%clk 0:00:05]} 42... Qh4
{[%clk 0:00:05.8]} 43. Qxe5+ {[%clk 0:00:04.8]} 43... Kh7 {[%clk 0:00:06.3]} 44.
Qf4 {[%clk 0:00:04.7]} 44... f6 {[%clk 0:00:05.3]} 45. Nxc5 {[%clk 0:00:04.6]}
45... Qh3 {[%clk 0:00:04.6]} 46. Qf3 {[%clk 0:00:04.3]} 46... Qh2+ {[%clk
0:00:03.3]} 47. Kd3 {[%clk 0:00:04.7]} 47... Qd6+ {[%clk 0:00:03.5]} 48. Kc4
{[%clk 0:00:05]} 48... Qd2 {[%clk 0:00:02.3]} 49. Qb7+ {[%clk 0:00:04.8]} 49...
Kh6 {[%clk 0:00:02.1]} 50. Qe4 {[%clk 0:00:05.7]} 50... Kg5 {[%clk 0:00:01.7]}
51. Qd3 {[%clk 0:00:04.8]} 51... f5 {[%clk 0:00:02.6]} 52. Qxd2+ {[%clk
0:00:04.8]} 52... f4 {[%clk 0:00:03.4]} 53. Nd3 {[%clk 0:00:05.2]} 53... Kxg4
{[%clk 0:00:04.3]} 54. Qxf4+ {[%clk 0:00:05.7]} 54... Kh3 {[%clk 0:00:03.5]} 55.
Qe3+ {[%clk 0:00:06.6]} 55... Kh4 {[%clk 0:00:03.4]} 56. Qf4+ {[%clk 0:00:06.3]}
56... Kh5 {[%clk 0:00:03.4]} 57. Qg3 {[%clk 0:00:06.3]} 57... g5 {[%clk
0:00:04.3]} 58. Ne5 {[%clk 0:00:06.5]} 58... g4 {[%clk 0:00:05.2]} 59. Qxg4+
{[%clk 0:00:06.8]} 59... Kh6 {[%clk 0:00:06.1]} 60. Qg6# {[%clk 0:00:07.5]} 1-0

[Event "*** SCC Grand Prix: Titled Tuesday Blitz"]
[Site "Chess.com"]
[Date "2020.09.08"]
[Round "5"]
[White "TregubovP"]
[Black "amatatanav"]
[Result "1-0"]
[WhiteElo "2593"]
[BlackElo "2405"]
[TimeControl "180+1"]
[EndTime "10:57:46 PDT"]
[Termination "TregubovP won by resignation"]

1. e4 {[%clk 0:03:00.9]} 1... c5 {[%clk 0:02:59.5]} 2. Nf3 {[%clk 0:03:00.5]}
2... Nc6 {[%clk 0:02:59.8]} 3. c3 {[%clk 0:03:00.3]} 3... Nf6 {[%clk 0:02:58.3]}
4. e5 {[%clk 0:03:00.1]} 4... Nd5 {[%clk 0:02:58.3]} 5. d4 {[%clk 0:02:58.9]}
5... cxd4 {[%clk 0:02:57.4]} 6. Bc4 {[%clk 0:02:58.4]} 6... Nb6 {[%clk
0:02:52.4]} 7. Bb3 {[%clk 0:02:58.4]} 7... d6 {[%clk 0:02:42.1]} 8. exd6 {[%clk
0:02:55.8]} 8... Qxd6 {[%clk 0:02:40.3]} 9. O-O {[%clk 0:02:55.8]} 9... e5
{[%clk 0:01:38.9]} 10. Ng5 {[%clk 0:02:37.5]} 10... Be6 {[%clk 0:01:26.4]} 11.
Nxe6 {[%clk 0:02:20.8]} 11... fxe6 {[%clk 0:01:27.3]} 12. Bg5 {[%clk 0:02:18.6]}
12... Be7 {[%clk 0:00:52.7]} 13. Bxe7 {[%clk 0:02:07.1]} 13... Qxe7 {[%clk
0:00:44.8]} 14. Nd2 {[%clk 0:02:07]} 14... O-O-O {[%clk 0:00:37.8]} 15. Qe2
{[%clk 0:01:59.7]} 15... Nd5 {[%clk 0:00:28.6]} 16. Ne4 {[%clk 0:01:46.8]} 16...
Nf4 {[%clk 0:00:22.3]} 17. Qc4 {[%clk 0:01:35.6]} 17... Kb8 {[%clk 0:00:18.7]}
18. g3 {[%clk 0:01:32]} 18... Nd5 {[%clk 0:00:08.9]} 19. Rfe1 {[%clk 0:01:28.3]}
19... h5 {[%clk 0:00:08.4]} 20. h4 {[%clk 0:01:26.5]} 20... Rhf8 {[%clk
0:00:07.6]} 21. Rad1 {[%clk 0:01:21.4]} 21... Rf5 {[%clk 0:00:07.1]} 22. Rd2
{[%clk 0:01:07.5]} 22... Rdf8 {[%clk 0:00:07.5]} 23. Rde2 {[%clk 0:01:05.5]}
23... Qc7 {[%clk 0:00:05.2]} 24. Qb5 {[%clk 0:01:02.7]} 24... a6 {[%clk
0:00:04.8]} 25. Qd3 {[%clk 0:01:01.6]} 25... Na5 {[%clk 0:00:04.2]} 26. Ng5
{[%clk 0:00:54]} 26... Nxb3 {[%clk 0:00:04]} 27. axb3 {[%clk 0:00:53.8]} 27...
Qd6 {[%clk 0:00:03.8]} 28. cxd4 {[%clk 0:00:52.2]} 28... Nb4 {[%clk 0:00:04.2]}
29. Qc4 {[%clk 0:00:46.8]} 29... Qxd4 {[%clk 0:00:04]} 30. Nxe6 {[%clk
0:00:38.8]} 30... Qxc4 {[%clk 0:00:03.8]} 31. bxc4 {[%clk 0:00:38.6]} 31... R8f7
{[%clk 0:00:04.2]} 32. Ng5 {[%clk 0:00:30.8]} 32... Rc7 {[%clk 0:00:04.3]} 33.
b3 {[%clk 0:00:29.9]} 33... Nd3 {[%clk 0:00:04.3]} 34. Rd1 {[%clk 0:00:30]}
34... Nc5 {[%clk 0:00:04.4]} 35. Re3 {[%clk 0:00:28]} 35... a5 {[%clk
0:00:04.3]} 36. Rd5 {[%clk 0:00:26.8]} 36... b6 {[%clk 0:00:02.9]} 37. Kg2
{[%clk 0:00:23.9]} 37... Kb7 {[%clk 0:00:02.7]} 38. Ne4 {[%clk 0:00:22]} 38...
Nxe4 {[%clk 0:00:02]} 39. Rxe4 {[%clk 0:00:22.3]} 39... Rc5 {[%clk 0:00:02.2]}
40. Rxc5 {[%clk 0:00:21.1]} 40... bxc5 {[%clk 0:00:03.1]} 41. Re2 {[%clk
0:00:20.2]} 41... Kc6 {[%clk 0:00:03.4]} 42. Ra2 {[%clk 0:00:20.4]} 42... Kb6
{[%clk 0:00:03.4]} 43. Rd2 {[%clk 0:00:21]} 43... Rf6 {[%clk 0:00:03.5]} 44. Rd5
{[%clk 0:00:20.7]} 44... Re6 {[%clk 0:00:03.9]} 45. Kf3 {[%clk 0:00:20.5]} 45...
Kc6 {[%clk 0:00:04.3]} 46. Ke4 {[%clk 0:00:20.4]} 46... Rf6 {[%clk 0:00:04.8]}
47. Ke3 {[%clk 0:00:18.7]} 47... Rf5 {[%clk 0:00:04.9]} 48. f3 {[%clk
0:00:17.7]} 48... g6 {[%clk 0:00:04.9]} 49. Ke4 {[%clk 0:00:17.8]} 49... Kb6
{[%clk 0:00:04.2]} 50. Rxe5 {[%clk 0:00:17.1]} 50... Rf6 {[%clk 0:00:04.7]} 51.
g4 {[%clk 0:00:15]} 51... Kc6 {[%clk 0:00:05.1]} 52. gxh5 {[%clk 0:00:14.1]}
52... gxh5 {[%clk 0:00:06]} 53. Rxh5 {[%clk 0:00:14.3]} 53... Kd6 {[%clk
0:00:06.7]} 54. Rd5+ {[%clk 0:00:12.1]} 54... Kc6 {[%clk 0:00:07.1]} 55. Rf5
{[%clk 0:00:12.4]} 55... Re6+ {[%clk 0:00:06.9]} 56. Re5 {[%clk 0:00:12.8]}
56... Rh6 {[%clk 0:00:07.1]} 57. h5 {[%clk 0:00:13.2]} 57... Kd6 {[%clk
0:00:06.9]} 58. Rd5+ {[%clk 0:00:13.4]} 58... Kc6 {[%clk 0:00:07.1]} 59. Rg5
{[%clk 0:00:14]} 59... Re6+ {[%clk 0:00:07.2]} 60. Kf5 {[%clk 0:00:14.3]} 60...
Re3 {[%clk 0:00:07.2]} 61. Rg3 {[%clk 0:00:12.7]} 61... Rxb3 {[%clk 0:00:07.1]}
62. h6 {[%clk 0:00:13.3]} 62... Rb8 {[%clk 0:00:07.6]} 63. h7 {[%clk 0:00:13.5]}
63... Rh8 {[%clk 0:00:08.1]} 64. Kg6 {[%clk 0:00:13.7]} 64... a4 {[%clk
0:00:08.7]} 65. Kg7 {[%clk 0:00:14.2]} 65... Rxh7+ {[%clk 0:00:09.3]} 66. Kxh7
{[%clk 0:00:14.5]} 66... Kb6 {[%clk 0:00:09.9]} 67. f4 {[%clk 0:00:14.6]} 67...
Ka5 {[%clk 0:00:10.4]} 68. f5 {[%clk 0:00:14.8]} 68... Kb4 {[%clk 0:00:11]} 69.
f6 {[%clk 0:00:15.4]} 69... Kxc4 {[%clk 0:00:11.6]} 70. f7 {[%clk 0:00:15.7]}
70... Kb4 {[%clk 0:00:12.1]} 71. f8=Q {[%clk 0:00:16]} 1-0

[Event "*** SCC Grand Prix: Titled Tuesday Blitz"]
[Site "Chess.com"]
[Date "2020.09.08"]
[Round "5"]
[White "HrvojeZagreb"]
[Black "chenxiaoyuer"]
[Result "0-1"]
[WhiteElo "2169"]
[BlackElo "2470"]
[TimeControl "180+1"]
[EndTime "10:57:47 PDT"]
[Termination "chenxiaoyuer won by resignation"]

1. d4 {[%clk 0:03:00.9]} 1... Nf6 {[%clk 0:02:59.6]} 2. Bf4 {[%clk 0:03:00.2]}
2... g6 {[%clk 0:02:59.3]} 3. Nc3 {[%clk 0:02:59.7]} 3... d5 {[%clk 0:02:58.9]}
4. e3 {[%clk 0:02:59.7]} 4... Bg7 {[%clk 0:02:58.3]} 5. h4 {[%clk 0:02:59.8]}
5... h5 {[%clk 0:02:58.4]} 6. Nf3 {[%clk 0:02:58.7]} 6... O-O {[%clk 0:02:57.2]}
7. Ne5 {[%clk 0:02:54.1]} 7... c5 {[%clk 0:02:56]} 8. Be2 {[%clk 0:02:52]} 8...
cxd4 {[%clk 0:02:52.8]} 9. exd4 {[%clk 0:02:51.6]} 9... Nc6 {[%clk 0:02:51.9]}
10. Qd2 {[%clk 0:02:38.1]} 10... Bf5 {[%clk 0:02:39.6]} 11. f3 {[%clk
0:02:21.7]} 11... Nd7 {[%clk 0:02:21.6]} 12. Nxc6 {[%clk 0:02:16.4]} 12... bxc6
{[%clk 0:02:20.6]} 13. g4 {[%clk 0:02:16.9]} 13... Be6 {[%clk 0:01:24.8]} 14.
Bh6 {[%clk 0:02:11.8]} 14... Nf6 {[%clk 0:01:16.7]} 15. Rg1 {[%clk 0:01:38.3]}
15... Qb6 {[%clk 0:00:56.5]} 16. Bxg7 {[%clk 0:01:29.1]} 16... Kxg7 {[%clk
0:00:55]} 17. O-O-O {[%clk 0:01:27.6]} 17... Rab8 {[%clk 0:00:52.3]} 18. Na4
{[%clk 0:01:13.6]} 18... Qb4 {[%clk 0:00:50.4]} 19. Qxb4 {[%clk 0:01:08.2]}
19... Rxb4 {[%clk 0:00:49.8]} 20. Nc5 {[%clk 0:01:09.1]} 20... Bc8 {[%clk
0:00:43.5]} 21. c3 {[%clk 0:01:02.5]} 21... Rb6 {[%clk 0:00:37.4]} 22. g5 {[%clk
0:00:55.9]} 22... Nd7 {[%clk 0:00:35]} 23. Nd3 {[%clk 0:00:53.1]} 23... Ba6
{[%clk 0:00:32.2]} 24. Rge1 {[%clk 0:00:40.2]} 24... Bxd3 {[%clk 0:00:31.1]} 25.
Bxd3 {[%clk 0:00:40.7]} 25... e6 {[%clk 0:00:31.2]} 26. Kc2 {[%clk 0:00:32.3]}
26... c5 {[%clk 0:00:29.4]} 27. dxc5 {[%clk 0:00:23.1]} 27... Nxc5 {[%clk
0:00:30.3]} 28. b3 {[%clk 0:00:20.5]} 28... a5 {[%clk 0:00:28.8]} 29. Bf1 {[%clk
0:00:16.3]} 29... Rfb8 {[%clk 0:00:28.1]} 30. Rd4 {[%clk 0:00:15.7]} 30... Kf8
{[%clk 0:00:23.2]} 31. Rb1 {[%clk 0:00:15.1]} 31... Ke7 {[%clk 0:00:21.3]} 32.
Be2 {[%clk 0:00:15]} 32... Nd7 {[%clk 0:00:19.8]} 33. Bd1 {[%clk 0:00:14.5]}
33... Ne5 {[%clk 0:00:19.3]} 34. Be2 {[%clk 0:00:13.5]} 34... Nc6 {[%clk
0:00:18.8]} 35. Ra4 {[%clk 0:00:13.3]} 35... Kd6 {[%clk 0:00:17.2]} 36. Rd1
{[%clk 0:00:13.3]} 36... Kc5 {[%clk 0:00:15.1]} 37. c4 {[%clk 0:00:12.4]} 37...
d4 {[%clk 0:00:10.6]} 38. Kb2 {[%clk 0:00:08.9]} 38... Rb4 {[%clk 0:00:10.3]}
39. Rxb4 {[%clk 0:00:08.7]} 39... axb4 {[%clk 0:00:10.9]} 40. Bd3 {[%clk
0:00:09]} 40... e5 {[%clk 0:00:09.8]} 41. Be4 {[%clk 0:00:09.2]} 41... Re8
{[%clk 0:00:10]} 42. Bxc6 {[%clk 0:00:09.2]} 42... Kxc6 {[%clk 0:00:10.3]} 43.
Re1 {[%clk 0:00:09.2]} 43... Kd6 {[%clk 0:00:08.9]} 44. Kc2 {[%clk 0:00:09.6]}
44... Ra8 {[%clk 0:00:07.9]} 45. Kb2 {[%clk 0:00:09.1]} 45... Ra5 {[%clk
0:00:08.5]} 46. Re4 {[%clk 0:00:08.8]} 46... Ke6 {[%clk 0:00:06.8]} 47. Kb1
{[%clk 0:00:09.2]} 47... f5 {[%clk 0:00:05.2]} 48. gxf6 {[%clk 0:00:10.1]} 48...
Kxf6 {[%clk 0:00:05.4]} 49. f4 {[%clk 0:00:10.6]} 49... Kf5 {[%clk 0:00:03.8]}
50. Rxe5+ {[%clk 0:00:10.9]} 50... Rxe5 {[%clk 0:00:03.7]} 51. fxe5 {[%clk
0:00:11.8]} 51... Kxe5 {[%clk 0:00:04.3]} 52. a3 {[%clk 0:00:11.6]} 52... bxa3
{[%clk 0:00:03.8]} 53. b4 {[%clk 0:00:09.4]} 53... d3 {[%clk 0:00:03.2]} 54. b5
{[%clk 0:00:09.5]} 54... d2 {[%clk 0:00:03.5]} 55. Kc2 {[%clk 0:00:09.6]} 55...
a2 {[%clk 0:00:04]} 56. Kxd2 {[%clk 0:00:09.9]} 56... a1=Q {[%clk 0:00:04]} 57.
Kd3 {[%clk 0:00:10.8]} 57... Qb2 {[%clk 0:00:04.2]} 58. Ke3 {[%clk 0:00:08.3]}
58... Qd4+ {[%clk 0:00:03.8]} 59. Ke2 {[%clk 0:00:08.6]} 59... Qxc4+ {[%clk
0:00:04.7]} 60. Kf3 {[%clk 0:00:09.4]} 60... Qxb5 {[%clk 0:00:05.2]} 61. Kg2
{[%clk 0:00:09.8]} 61... Qd7 {[%clk 0:00:06.1]} 62. Kg3 {[%clk 0:00:09.6]} 62...
Qf5 {[%clk 0:00:07]} 63. Kg2 {[%clk 0:00:09.7]} 63... Ke4 {[%clk 0:00:07.9]} 64.
Kg3 {[%clk 0:00:09.7]} 64... Ke3 {[%clk 0:00:08.8]} 65. Kg2 {[%clk 0:00:10.1]}
65... Qg4+ {[%clk 0:00:09.3]} 66. Kf1 {[%clk 0:00:09.9]} 66... Qh3+ {[%clk
0:00:07.3]} 67. Kg1 {[%clk 0:00:09.6]} 67... Qxh4 {[%clk 0:00:07.6]} 68. Kg2
{[%clk 0:00:09.7]} 68... Qg4+ {[%clk 0:00:07.8]} 69. Kh2 {[%clk 0:00:09.4]}
69... h4 {[%clk 0:00:08.2]} 70. Kh1 {[%clk 0:00:08.9]} 70... h3 {[%clk
0:00:09.1]} 0-1

[Event "*** SCC Grand Prix: Titled Tuesday Blitz"]
[Site "Chess.com"]
[Date "2020.09.08"]
[Round "5"]
[White "Xeniya2005"]
[Black "PavelShkapenko"]
[Result "0-1"]
[WhiteElo "2408"]
[BlackElo "2692"]
[TimeControl "180+1"]
[EndTime "10:57:49 PDT"]
[Termination "PavelShkapenko won on time"]

1. e4 {[%clk 0:02:54.2]} 1... c5 {[%clk 0:02:54.2]} 2. Be2 {[%clk 0:02:53.7]}
2... Nc6 {[%clk 0:02:51.5]} 3. f4 {[%clk 0:02:53.1]} 3... d6 {[%clk 0:02:45.9]}
4. Nf3 {[%clk 0:02:50.5]} 4... Nf6 {[%clk 0:02:46]} 5. d3 {[%clk 0:02:49.5]}
5... g6 {[%clk 0:02:46.3]} 6. O-O {[%clk 0:02:48]} 6... Bg7 {[%clk 0:02:46.7]}
7. c3 {[%clk 0:02:46.9]} 7... O-O {[%clk 0:02:47.1]} 8. Kh1 {[%clk 0:02:44.5]}
8... c4 {[%clk 0:02:44.9]} 9. Be3 {[%clk 0:02:38.4]} 9... cxd3 {[%clk
0:02:43.3]} 10. Bxd3 {[%clk 0:02:37.7]} 10... d5 {[%clk 0:02:41.4]} 11. e5
{[%clk 0:02:36.8]} 11... Ne4 {[%clk 0:02:41.5]} 12. Nbd2 {[%clk 0:02:29.7]}
12... Bf5 {[%clk 0:02:40.6]} 13. Qc2 {[%clk 0:02:28.4]} 13... Nxd2 {[%clk
0:02:39.1]} 14. Qxd2 {[%clk 0:02:26.9]} 14... Bxd3 {[%clk 0:02:37.7]} 15. Qxd3
{[%clk 0:02:24.3]} 15... Qd7 {[%clk 0:02:35.8]} 16. Rad1 {[%clk 0:02:15.8]}
16... Rad8 {[%clk 0:02:35.3]} 17. c4 {[%clk 0:02:14.2]} 17... e6 {[%clk
0:02:32.8]} 18. cxd5 {[%clk 0:02:09.8]} 18... Nb4 {[%clk 0:02:31.5]} 19. Qb3
{[%clk 0:02:00.9]} 19... Nxd5 {[%clk 0:02:31.4]} 20. Bc5 {[%clk 0:01:52.1]}
20... Rfe8 {[%clk 0:02:30.6]} 21. Bf2 {[%clk 0:01:28.4]} 21... Rc8 {[%clk
0:02:16]} 22. g3 {[%clk 0:01:19.6]} 22... Qc6 {[%clk 0:02:14.5]} 23. Nd4 {[%clk
0:01:15.3]} 23... Qc4 {[%clk 0:01:35.2]} 24. Qxc4 {[%clk 0:01:05.7]} 24... Rxc4
{[%clk 0:01:34.6]} 25. b3 {[%clk 0:01:05]} 25... Rc3 {[%clk 0:01:28.7]} 26. Kg2
{[%clk 0:00:53.2]} 26... a6 {[%clk 0:01:28]} 27. Rd2 {[%clk 0:00:45.1]} 27...
Rec8 {[%clk 0:01:27.2]} 28. Rfd1 {[%clk 0:00:43.4]} 28... Bf8 {[%clk 0:01:25]}
29. Nf3 {[%clk 0:00:35.8]} 29... Bb4 {[%clk 0:01:19.7]} 30. Ng5 {[%clk
0:00:32.3]} 30... Rc2 {[%clk 0:01:16.7]} 31. Rxc2 {[%clk 0:00:27.6]} 31... Rxc2
{[%clk 0:01:16.7]} 32. Kf3 {[%clk 0:00:20.3]} 32... Ba3 {[%clk 0:00:49.3]} 33.
g4 {[%clk 0:00:16.5]} 33... Rxa2 {[%clk 0:00:48.9]} 34. f5 {[%clk 0:00:16.3]}
34... h6 {[%clk 0:00:29]} 35. Ne4 {[%clk 0:00:10.3]} 35... gxf5 {[%clk
0:00:28.5]} 36. gxf5 {[%clk 0:00:09.6]} 36... Rb2 {[%clk 0:00:26.1]} 37. Rd3
{[%clk 0:00:05.4]} 37... Kf8 {[%clk 0:00:25.4]} 38. f6 {[%clk 0:00:04.8]} 38...
Ke8 {[%clk 0:00:24.8]} 39. Bc5 {[%clk 0:00:04.3]} 39... Bxc5 {[%clk 0:00:17.9]}
40. Nxc5 {[%clk 0:00:05.2]} 40... Rxh2 {[%clk 0:00:18.1]} 41. Kg3 {[%clk
0:00:03.8]} 41... Rc2 {[%clk 0:00:16.8]} 42. Ne4 {[%clk 0:00:03.7]} 42... Rc6
{[%clk 0:00:11.7]} 43. Nd6+ {[%clk 0:00:03.2]} 43... Rxd6 {[%clk 0:00:12]} 44.
exd6 {[%clk 0:00:03]} 44... Kd7 {[%clk 0:00:12.6]} 45. Kg4 {[%clk 0:00:02.8]}
45... Kxd6 {[%clk 0:00:12.9]} 46. Kh5 {[%clk 0:00:02.4]} 46... Ke5 {[%clk
0:00:13]} 47. Kxh6 {[%clk 0:00:02.6]} 47... Nxf6 {[%clk 0:00:13.3]} 48. Kg7
{[%clk 0:00:02.6]} 48... Ne4 {[%clk 0:00:11.4]} 49. Kxf7 {[%clk 0:00:02]} 49...
Nc5 {[%clk 0:00:11.9]} 50. Re3+ {[%clk 0:00:02.1]} 50... Kd5 {[%clk 0:00:12.1]}
51. b4 {[%clk 0:00:02.2]} 51... Ne4 {[%clk 0:00:11.2]} 52. Ke7 {[%clk
0:00:02.3]} 52... e5 {[%clk 0:00:11.1]} 53. Kd7 {[%clk 0:00:02.2]} 53... b5
{[%clk 0:00:10.9]} 54. Kc7 {[%clk 0:00:02]} 54... Ng5 {[%clk 0:00:09.6]} 55. Kb6
{[%clk 0:00:01.9]} 55... Ne6 {[%clk 0:00:08.7]} 56. Kxa6 {[%clk 0:00:01.7]}
56... Nd4 {[%clk 0:00:09.3]} 57. Re1 {[%clk 0:00:01.2]} 57... e4 {[%clk
0:00:08.9]} 58. Kb6 {[%clk 0:00:01.3]} 58... Ke5 {[%clk 0:00:09]} 59. Re3 {[%clk
0:00:01.3]} 59... Kf4 {[%clk 0:00:08.9]} 60. Re1 {[%clk 0:00:01.6]} 60... Nc2
{[%clk 0:00:09]} 61. Re2 {[%clk 0:00:01.6]} 61... Nxb4 {[%clk 0:00:08.4]} 0-1